bitfinex/quotes_BTCUSD_20250822
["timestamp","ask_amount","ask_price","bid_price","bid_amount"]
[1755831951863,0.66283985,113460.0,113450.0,0.032263]
[1755831952116,0.16283985,113460.0,113450.0,0.032263]
[1755831953747,0.66283985,113460.0,113450.0,0.032263]
[1755831953991,0.21940302,113460.0,113450.0,0.032263]
[1755831954164,0.16283985,113460.0,113450.0,0.032263]
[1755831957939,0.01379985,113460.0,113450.0,0.032263]
[1755831958139,0.16279985,113460.0,113450.0,0.032263]
[1755831958360,0.66279985,113460.0,113450.0,0.032263]
[1755831958516,0.16279985,113460.0,113450.0,0.032263]
[1755831964492,0.01379985,113460.0,113450.0,0.032263]
[1755831964694,0.00729985,113460.0,113450.0,0.60323875]
[1755831964907,8.493e-05,113480.0,113450.0,0.42387481]
[1755831965114,8.493e-05,113480.0,113470.0,0.08788706]
[1755831965315,8.493e-05,113480.0,113470.0,0.09939245]
[1755831965516,8.493e-05,113480.0,113470.0,0.10255245]
[1755831965874,8.493e-05,113480.0,113470.0,0.12905745]
[1755831967887,8.493e-05,113480.0,113470.0,0.04907402]
[1755831968066,0.01388145,113480.0,113470.0,0.04907402]
[1755831968678,0.01388145,113480.0,113470.0,0.05127724]
[1755831969959,0.01388145,113480.0,113470.0,0.12171528]
[1755831970163,0.01388145,113480.0,113470.0,0.1239185]
[1755831970332,0.01388145,113480.0,113470.0,0.15120635]
[1755831970531,0.01388145,113480.0,113470.0,0.14900313]
[1755831970734,0.01388145,113480.0,113470.0,0.14679991]
[1755831971318,0.01388145,113480.0,113470.0,0.07636187]
[1755831971541,0.01388145,113480.0,113470.0,0.04907402]
[1755831979848,0.01388145,113480.0,113470.0,0.1239185]
[1755831981897,0.01388145,113480.0,113470.0,0.1249185]
[1755831985781,0.01388145,113480.0,113470.0,0.38721206]
[1755831986932,8.493e-05,113480.0,113470.0,0.38721206]
[1755831987357,8.493e-05,113480.0,113470.0,0.66794058]
[1755831987797,8.493e-05,113480.0,113470.0,0.63667465]
[1755831989264,0.01388022,113480.0,113470.0,0.63667465]
[1755831989404,0.01388022,113480.0,113470.0,0.63767465]
[1755831989864,0.01388022,113480.0,113470.0,0.63667465]
[1755831990289,0.01388022,113480.0,113470.0,0.63867465]
[1755831992194,0.01388022,113480.0,113470.0,0.67884489]
[1755831992744,0.01388022,113480.0,113470.0,0.76572964]
[1755831993370,0.01388022,113480.0,113470.0,0.7969789]
[1755831993798,0.01388022,113480.0,113470.0,0.7949789]
[1755831994219,0.01388022,113480.0,113470.0,0.7989789]
[1755831994645,0.01388022,113480.0,113470.0,0.8019789]
[1755831995302,0.01388022,113480.0,113470.0,0.77072964]
[1755831996144,0.50754231,113500.0,113490.0,0.01744902]
[1755831996366,0.50802416,113500.0,113490.0,0.44025185]
[1755831996576,0.50802416,113500.0,113490.0,0.43804902]
[1755831996988,0.50802416,113500.0,113490.0,0.46454602]
[1755831997610,0.50802416,113500.0,113490.0,0.46554602]
[1755831999430,0.52829014,113500.0,113490.0,0.46554602]
[1755831999564,0.54208369,113500.0,113490.0,0.46554602]
[1755831999771,0.52181771,113500.0,113490.0,0.46554602]
[1755832000429,0.52181771,113500.0,113490.0,0.641773]
[1755832000811,0.52181771,113500.0,113490.0,0.46554602]
[1755832001009,0.52181771,113500.0,113490.0,0.641773]
[1755832001241,0.52181771,113500.0,113490.0,0.46554602]
[1755832001790,0.52181771,113500.0,113490.0,0.46454602]
[1755832002193,0.52181771,113500.0,113490.0,0.46554602]
[1755832003041,0.52181771,113500.0,113490.0,0.46754602]
[1755832003241,0.52181771,113500.0,113490.0,0.643773]
[1755832003588,0.52181771,113500.0,113490.0,0.642773]
[1755832003823,0.52181771,113500.0,113490.0,0.644773]
[1755832004017,0.52181771,113500.0,113490.0,1.07165775]
[1755832004217,0.32315631,113500.0,113490.0,1.07165775]
[1755832004529,0.2500523,113500.0,113490.0,1.40807331]
[1755832005152,0.23625875,113500.0,113490.0,1.40807331]
[1755832005568,0.23625875,113500.0,113490.0,1.07165775]
[1755832006555,0.21112452,113500.0,113490.0,1.58476061]
[1755832006791,0.1666763,113500.0,113490.0,1.58476061]
[1755832006998,0.1666763,113500.0,113490.0,1.60476062]
[1755832007635,0.12280755,113500.0,113490.0,1.60276062]
[1755832007863,0.05764848,113500.0,113490.0,1.60376062]
[1755832008068,0.05764848,113500.0,113490.0,1.60876062]
[1755832010491,0.05764848,113500.0,113490.0,1.27234506]
[1755832010686,0.02432046,113500.0,113490.0,1.27234506]
[1755832011822,0.01399055,113510.0,113500.0,0.80104001]
[1755832012025,0.01399055,113510.0,113500.0,0.88989476]
[1755832012227,0.01399055,113510.0,113500.0,0.89284476]
[1755832013526,0.01399055,113510.0,113500.0,0.89334476]
[1755832013729,0.01399055,113510.0,113500.0,0.91033476]
[1755832014694,0.01399055,113510.0,113500.0,0.91333476]
[1755832015248,0.01399055,113510.0,113500.0,1.06205476]
[1755832018888,0.01399055,113510.0,113500.0,0.91333476]
[1755832019086,0.01597055,113510.0,113500.0,1.06205476]
[1755832019285,0.01399055,113510.0,113500.0,1.06205476]
[1755832022960,0.01379055,113510.0,113500.0,1.44847032]
[1755832023165,0.0002,113520.0,113510.0,0.44703393]
[1755832023370,0.00034447,113520.0,113510.0,0.78651127]
[1755832024467,0.00034447,113520.0,113510.0,0.86094931]
[1755832025490,0.5,113570.0,113520.0,0.54242665]
[1755832025693,0.0284202,113570.0,113530.0,0.23996887]
[1755832026050,0.00198,113540.0,113530.0,0.10433377]
[1755832026251,0.00198,113540.0,113530.0,0.40488688]
[1755832026457,0.00198,113540.0,113530.0,0.58156765]
[1755832026669,0.00198,113540.0,113530.0,0.75673565]
[1755832027302,0.00198,113540.0,113530.0,0.75181565]
[1755832027525,0.00198,113540.0,113530.0,0.57565076]
[1755832027743,0.00198,113540.0,113530.0,0.57765076]
[1755832028160,0.00198,113540.0,113530.0,0.57965076]
[1755832028587,0.00432,113540.0,113530.0,0.57965076]
[1755832030178,0.00198,113540.0,113530.0,0.57965076]
[1755832031029,0.00198,113540.0,113530.0,0.75581565]
[1755832031235,0.00198,113540.0,113530.0,0.57965076]
[1755832035277,0.00198,113540.0,113530.0,0.58260076]
[1755832035858,0.00198,113540.0,113530.0,0.57965076]
[1755832036503,0.00198,113540.0,113530.0,0.58260076]
[1755832038727,0.00198,113540.0,113530.0,0.58467076]
[1755832041723,0.00198,113540.0,113530.0,0.57965076]
[1755832042706,0.00198,113540.0,113530.0,0.58068076]
[1755832043169,0.00198,113540.0,113530.0,0.58168076]
[1755832043563,0.06776,113580.0,113530.0,0.58375076]
[1755832043755,0.00825102,113580.0,113530.0,0.58189523]
[1755832043955,0.01378819,113560.0,113530.0,0.55540723]
[1755832044159,0.01378819,113560.0,113530.0,0.55237723]
[1755832044364,0.01378819,113560.0,113550.0,0.01744902]
[1755832044592,0.01378819,113560.0,113550.0,0.16608902]
[1755832045372,0.01378819,113560.0,113550.0,0.19257702]
[1755832046108,0.01378819,113560.0,113550.0,0.19307702]
[1755832047287,0.01578819,113560.0,113550.0,0.19307702]
[1755832048448,0.01578819,113560.0,113550.0,0.19610702]
[1755832049149,0.01578819,113560.0,113550.0,0.19817702]
[1755832049379,0.01578819,113560.0,113550.0,0.19307702]
[1755832049761,0.01578819,113560.0,113550.0,0.19610702]
[1755832050798,0.01578819,113560.0,113550.0,0.19817702]
[1755832051220,0.01578819,113560.0,113550.0,0.26861506]
[1755832051583,0.01578819,113560.0,113550.0,0.49700405]
[1755832053418,0.01578819,113560.0,113550.0,0.53163367]
[1755832054183,0.01378819,113560.0,113550.0,0.53163367]
[1755832054309,0.01578819,113560.0,113550.0,0.53163367]
[1755832054724,0.01378819,113560.0,113550.0,0.53163367]
[1755832055572,0.01378819,113560.0,113550.0,0.35549981]
[1755832055786,0.01378819,113560.0,113550.0,0.20685981]
[1755832055976,0.01378819,113560.0,113550.0,0.04953702]
[1755832056325,0.01378819,113560.0,113550.0,0.19610702]
[1755832056685,0.01378819,113560.0,113550.0,0.19817702]
[1755832057040,0.01378819,113560.0,113550.0,0.19610702]
[1755832057435,0.01378819,113560.0,113550.0,0.19710702]
[1755832057964,0.01378819,113560.0,113550.0,0.19917702]
[1755832059050,0.01378819,113560.0,113550.0,0.42756601]
[1755832062556,0.01378819,113560.0,113550.0,0.37531088]
[1755832062768,0.01378819,113560.0,113550.0,0.19917702]
[1755832063632,0.01378819,113560.0,113550.0,0.37531088]
[1755832064086,0.01378819,113560.0,113550.0,0.19917702]
[1755832064267,0.01378819,113560.0,113550.0,0.46219563]
[1755832064464,0.01378819,113560.0,113550.0,0.28606177]
[1755832064666,0.01378819,113560.0,113550.0,0.46219563]
[1755832065416,0.01378819,113560.0,113550.0,0.80219563]
[1755832066210,0.29911667,113600.0,113550.0,0.84969587]
[1755832066421,0.08790577,113610.0,113570.0,0.01744902]
[1755832066622,1.722125,113600.0,113580.0,0.1486]
[1755832066844,1.222125,113600.0,113580.0,0.17728309]
[1755832067316,1.222125,113600.0,113580.0,0.1486]
[1755832067547,1.222125,113600.0,113590.0,0.026481]
[1755832068200,1.227125,113600.0,113590.0,0.026481]
[1755832068419,0.005,113600.0,113590.0,0.026481]
[1755832068653,0.755,113600.0,113590.0,0.026481]
[1755832068853,1.477125,113600.0,113590.0,0.026481]
[1755832069075,0.255,113600.0,113590.0,0.026481]
[1755832069691,0.25,113600.0,113590.0,0.026481]
[1755832069828,0.26378379,113600.0,113580.0,0.1486]
[1755832070026,0.26878379,113600.0,113580.0,0.175081]
[1755832070789,0.26378379,113600.0,113580.0,0.175081]
[1755832071084,0.26878379,113600.0,113580.0,0.175081]
[1755832073045,0.26878379,113600.0,113580.0,0.178011]
[1755832076502,0.26878379,113600.0,113590.0,0.00293]
[1755832076709,0.26878379,113600.0,113590.0,0.00502]
[1755832077298,0.25,113600.0,113590.0,0.031501]
[1755832077497,0.02014577,113610.0,113590.0,0.031501]
[1755832077699,0.003,113600.0,113590.0,0.031501]
[1755832077913,0.003,113600.0,113590.0,0.029411]
[1755832079509,0.02029019,113610.0,113590.0,0.029411]
[1755832079724,0.02429019,113610.0,113580.0,0.1486]
[1755832079986,0.0325438,113610.0,113580.0,0.1486]
[1755832080280,0.5285438,113610.0,113580.0,0.026483]
[1755832080532,1.873725,113600.0,113570.0,0.37698899]
[1755832080778,1.222125,113590.0,113570.0,0.22838899]
[1755832081267,1.222125,113590.0,113570.0,0.25487399]
[1755832081484,1.24416442,113590.0,113570.0,0.25487399]
[1755832081691,0.02203942,113590.0,113570.0,0.25487399]
[1755832082699,0.01378518,113590.0,113570.0,0.029415]
[1755832083593,0.01478518,113590.0,113570.0,0.029415]
[1755832085660,0.001,113590.0,113570.0,0.029415]
[1755832087102,0.001,113590.0,113560.0,0.28972804]
[1755832087247,0.50925169,113590.0,113560.0,0.16761504]
[1755832087455,1.23137669,113590.0,113560.0,0.09985504]
[1755832087693,0.00925169,113590.0,113560.0,0.09985504]
[1755832087839,1.222125,113580.0,113560.0,0.09985504]
[1755832088875,1.23591068,113580.0,113560.0,0.09692504]
[1755832089088,0.01378568,113580.0,113570.0,0.00293]
[1755832089277,0.51378568,113580.0,113570.0,0.00293]
[1755832089488,1.73591068,113580.0,113570.0,0.00293]
[1755832089703,0.01378568,113580.0,113570.0,0.00293]
[1755832089866,0.51378568,113580.0,113570.0,0.00293]
[1755832090073,1.73591068,113580.0,113570.0,0.00293]
[1755832090283,0.01378568,113580.0,113570.0,0.00293]
[1755832090478,0.51378568,113580.0,113570.0,0.00293]
[1755832090688,1.73591068,113580.0,113570.0,0.00502]
[1755832090917,0.01378568,113580.0,113570.0,0.00502]
[1755832094464,0.51378568,113580.0,113560.0,0.026487]
[1755832094705,1.88451068,113580.0,113560.0,0.00293]
[1755832094942,0.16238568,113580.0,113560.0,0.00293]
[1755832098833,0.66238568,113580.0,113560.0,0.00293]
[1755832099027,1.88451068,113580.0,113560.0,0.00293]
[1755832099245,0.16238568,113580.0,113560.0,0.00293]
[1755832099470,0.66238568,113580.0,113560.0,0.00293]
[1755832100976,0.66238568,113580.0,113560.0,0.07336804]
[1755832101839,0.16238568,113580.0,113560.0,0.07336804]
[1755832105086,0.16238568,113580.0,113560.0,0.07349804]
[1755832105841,0.01378568,113580.0,113570.0,0.00519]
[1755832111793,0.06776,113610.0,113570.0,0.00519]
[1755832112026,0.5,113600.0,113580.0,0.00306]
[1755832112273,1.23038031,113600.0,113580.0,0.00306]
[1755832112734,0.00825531,113600.0,113580.0,0.00306]
[1755832112963,0.25,113590.0,113580.0,0.00306]
[1755832113175,0.25,113590.0,113580.0,0.00519]
[1755832113833,0.26378461,113590.0,113580.0,0.00519]
[1755832114426,0.26478461,113590.0,113580.0,0.00519]
[1755832115712,0.26578461,113590.0,113580.0,0.00519]
[1755832117725,0.26578461,113590.0,113560.0,0.09692404]
[1755832117927,0.26578461,113590.0,113570.0,0.00306]
[1755832118700,0.26478461,113590.0,113570.0,0.00306]
[1755832118895,0.26578461,113590.0,113570.0,0.00306]
[1755832119218,0.26478461,113590.0,113570.0,0.00306]
[1755832120198,0.26578461,113590.0,113570.0,0.00306]
[1755832137424,0.27404476,113590.0,113570.0,0.00306]
[1755832137695,0.27404476,113590.0,113580.0,0.0021]
[1755832138103,0.27404476,113590.0,113580.0,0.00511]
[1755832138390,0.27404476,113590.0,113580.0,0.00301]
[1755832138601,0.27304476,113590.0,113580.0,0.00301]
[1755832138800,0.27404652,113590.0,113580.0,0.00301]
[1755832139875,0.27304652,113590.0,113580.0,0.00301]
[1755832140295,0.27304652,113590.0,113560.0,0.09912551]
[1755832140591,0.27404652,113590.0,113570.0,0.00301]
[1755832141250,0.27204652,113590.0,113570.0,0.00301]
[1755832141588,0.27304652,113590.0,113570.0,0.00301]
[1755832142204,0.27404652,113590.0,113570.0,0.00301]
[1755832142627,0.27304652,113590.0,113570.0,0.00301]
[1755832142804,0.27204652,113590.0,113560.0,0.09993404]
[1755832143009,0.14856,113580.0,113560.0,0.09993404]
[1755832143440,0.14856,113580.0,113560.0,0.09692404]
[1755832143641,0.14856,113580.0,113570.0,0.00301]
[1755832145066,0.16254461,113590.0,113570.0,0.00301]
[1755832145295,0.17080525,113590.0,113570.0,0.00301]
[1755832145506,0.17092525,113590.0,113570.0,0.00301]
[1755832146338,0.17092525,113590.0,113560.0,0.07344804]
[1755832146537,0.14884,113580.0,113570.0,0.00301]
[1755832147550,0.16462461,113590.0,113570.0,0.00301]
[1755832147788,0.17288321,113590.0,113570.0,0.00301]
[1755832147941,0.17088321,113590.0,113570.0,0.00301]
[1755832149121,0.17188321,113590.0,113570.0,0.00301]
[1755832150542,0.17288321,113590.0,113570.0,0.00301]
[1755832152974,0.16462461,113590.0,113570.0,0.00301]
[1755832153195,0.17287551,113590.0,113560.0,0.07344804]
[1755832153781,0.17287518,113590.0,113560.0,0.07344804]
[1755832153989,0.17187518,113590.0,113560.0,0.07344804]
[1755832154617,0.17287518,113590.0,113560.0,0.07344804]
[1755832155295,0.17287518,113590.0,113570.0,0.00301]
[1755832155926,0.16462461,113590.0,113570.0,0.00301]
[1755832156577,0.16362461,113590.0,113570.0,0.00301]
[1755832156985,0.16462461,113590.0,113570.0,0.00301]
[1755832157425,0.01478461,113590.0,113580.0,0.00207]
[1755832157638,0.51578461,113590.0,113580.0,0.00512]
[1755832157855,1.73790961,113590.0,113580.0,0.00512]
[1755832158077,0.26578461,113590.0,113580.0,0.00512]
[1755832158453,0.26378461,113590.0,113580.0,0.00512]
[1755832159228,0.26478461,113590.0,113580.0,0.00512]
[1755832160335,0.26578461,113590.0,113580.0,0.00512]
[1755832161812,0.252,113590.0,113580.0,0.031604]
[1755832163416,0.26578433,113590.0,113580.0,0.031604]
[1755832170190,0.26578433,113590.0,113580.0,0.10204204]
[1755832170992,0.26378433,113590.0,113580.0,0.10204204]
[1755832171365,0.26378433,113590.0,113580.0,0.10844422]
[1755832171746,0.01378433,113590.0,113580.0,0.10744422]
[1755832171938,0.01378433,113590.0,113580.0,0.10644422]
[1755832172083,0.01378433,113590.0,113580.0,0.10944422]
[1755832173143,0.01378433,113590.0,113580.0,0.11144422]
[1755832174364,0.01378433,113590.0,113580.0,0.37814422]
[1755832174569,0.01378433,113590.0,113580.0,0.37374204]
[1755832180143,0.01378433,113590.0,113580.0,0.54982937]
[1755832180780,0.01378433,113590.0,113580.0,0.37374204]
[1755832182993,0.01378433,113590.0,113580.0,0.47807581]
[1755832184115,0.01378433,113590.0,113580.0,0.65416314]
[1755832185669,0.03154661,113610.0,113580.0,0.6629675]
[1755832185891,0.06796,113630.0,113590.0,0.15381089]
[1755832186119,0.00068129,113630.0,113600.0,0.00305]
[1755832186317,0.00068129,113630.0,113610.0,0.14856]
[1755832186543,0.00068129,113630.0,113610.0,0.15161]
[1755832186895,0.25,113620.0,113610.0,0.14856]
[1755832187510,0.25,113620.0,113610.0,0.175035]
[1755832188141,0.00068129,113630.0,113610.0,0.175035]
[1755832188381,0.00068129,113630.0,113610.0,0.177975]
[1755832188382,0.001,113620.0,113610.0,0.177975]
[1755832188594,0.002,113620.0,113610.0,0.1515]
[1755832188796,0.001,113620.0,113610.0,0.1515]
[1755832189003,0.01478001,113620.0,113610.0,0.177975]
[1755832189373,0.04927818,113620.0,113610.0,0.175035]
[1755832189554,0.04927818,113620.0,113610.0,0.174995]
[1755832193514,0.04927818,113620.0,113610.0,0.177935]
[1755832195100,0.04927818,113620.0,113610.0,0.026475]
[1755832196362,0.06772,113650.0,113610.0,0.026475]
[1755832196619,1.567822,113640.0,113610.0,0.026475]
[1755832196838,0.25,113630.0,113610.0,0.029415]
[1755832197045,1.32605667,113630.0,113610.0,0.029415]
[1755832197209,0.25823467,113630.0,113610.0,0.00294]
[1755832197626,0.03241649,113630.0,113620.0,0.026475]
[1755832197825,0.53241649,113630.0,113620.0,0.026475]
[1755832198029,1.60023849,113630.0,113620.0,0.026475]
[1755832198231,0.03241649,113630.0,113620.0,0.026475]
[1755832198437,0.53241649,113630.0,113620.0,0.026475]
[1755832198613,1.60023849,113630.0,113620.0,0.026475]
[1755832198816,0.04619689,113630.0,113620.0,0.026475]
[1755832199009,0.54819689,113630.0,113620.0,0.026475]
[1755832199240,1.59183707,113630.0,113620.0,0.026475]
[1755832199439,0.02401507,113630.0,113620.0,0.026475]
[1755832199645,0.52402359,113630.0,113620.0,0.026475]
[1755832199846,1.59184559,113630.0,113620.0,0.026475]
[1755832200125,0.02402359,113630.0,113620.0,0.026475]
[1755832200361,0.52302359,113630.0,113620.0,0.026475]
[1755832200571,1.58984559,113630.0,113620.0,0.026475]
[1755832200777,0.02202359,113630.0,113620.0,0.026475]
[1755832201005,0.02202359,113630.0,113620.0,0.029415]
[1755832201006,0.52202359,113630.0,113620.0,0.029415]
[1755832201233,1.58984559,113630.0,113620.0,0.026475]
[1755832201463,0.02202359,113630.0,113620.0,0.026475]
[1755832201690,0.52202359,113630.0,113620.0,0.026475]
[1755832201895,1.58984559,113630.0,113620.0,0.026475]
[1755832202103,0.02202359,113630.0,113620.0,0.026475]
[1755832202376,0.52202359,113630.0,113620.0,0.026475]
[1755832202558,1.58984559,113630.0,113620.0,0.026475]
[1755832202761,0.02202359,113630.0,113620.0,0.026475]
[1755832203000,0.52202359,113630.0,113620.0,0.026475]
[1755832203206,1.58984559,113630.0,113620.0,0.026475]
[1755832203424,0.02202359,113630.0,113620.0,0.026475]
[1755832203677,0.52202359,113630.0,113620.0,0.026475]
[1755832203860,1.58984559,113630.0,113620.0,0.026475]
[1755832204089,0.02202359,113630.0,113620.0,0.026475]
[1755832204322,0.52202359,113630.0,113620.0,0.026475]
[1755832204534,1.58984559,113630.0,113620.0,0.026475]
[1755832204750,0.02202359,113630.0,113620.0,0.026475]
[1755832205005,0.52202359,113630.0,113620.0,0.026475]
[1755832205216,1.58984559,113630.0,113620.0,0.026475]
[1755832205437,0.02202359,113630.0,113610.0,0.00294]
[1755832205668,0.52202359,113630.0,113610.0,0.00294]
[1755832205877,1.58984559,113630.0,113610.0,0.029416]
[1755832206104,0.02202359,113630.0,113610.0,0.029416]
[1755832206337,0.52202359,113630.0,113610.0,0.029416]
[1755832206552,1.58984559,113630.0,113610.0,0.029416]
[1755832206799,0.02202359,113630.0,113620.0,0.00022]
[1755832207036,0.52202359,113630.0,113620.0,0.00022]
[1755832207844,0.5137804,113630.0,113620.0,0.00022]
[1755832208046,0.5220308,113630.0,113620.0,0.00022]
[1755832208889,0.52203189,113630.0,113620.0,0.00022]
[1755832210725,0.52203189,113630.0,113620.0,0.00316]
[1755832211531,0.52203189,113630.0,113620.0,0.00022]
[1755832214042,0.5410487,113630.0,113620.0,0.00022]
[1755832215602,0.52203189,113630.0,113620.0,0.00022]
[1755832216025,0.54104513,113630.0,113620.0,0.00022]
[1755832217202,0.52203189,113630.0,113620.0,0.00022]
[1755832217411,0.52203221,113630.0,113620.0,0.00022]
[1755832218309,0.5137804,113630.0,113620.0,0.00022]
[1755832220413,0.52203225,113630.0,113620.0,0.00022]
[1755832221276,0.54104271,113630.0,113620.0,0.00022]
[1755832221406,0.04104271,113630.0,113620.0,0.00022]
[1755832221836,0.29104271,113630.0,113620.0,0.00022]
[1755832222355,0.29204271,113630.0,113620.0,0.00022]
[1755832223181,0.28479086,113630.0,113620.0,0.00022]
[1755832223382,0.29304242,113630.0,113620.0,0.00022]
[1755832224009,1.36705264,113630.0,113620.0,0.00022]
[1755832225629,1.35327224,113630.0,113620.0,0.00022]
[1755832226647,1.36976874,113630.0,113620.0,0.00022]
[1755832228922,1.38355009,113630.0,113620.0,0.00022]
[1755832229329,1.36086537,113630.0,113620.0,0.00022]
[1755832229533,1.38354287,113630.0,113620.0,0.00022]
[1755832231355,1.47041252,113630.0,113600.0,0.07093804]
[1755832231556,1.216342,113620.0,113600.0,0.07408804]
[1755832231755,1.067822,113610.0,113600.0,0.07408804]
[1755832232356,1.067822,113610.0,113600.0,0.07614804]
[1755832232563,1.08160437,113610.0,113600.0,0.07614804]
[1755832232749,0.01378237,113610.0,113600.0,0.07614804]
[1755832232950,0.51378237,113610.0,113600.0,0.07662933]
[1755832233180,1.08160437,113610.0,113600.0,0.07456933]
[1755832233382,0.01378237,113610.0,113600.0,0.07556933]
[1755832233793,0.51378237,113610.0,113600.0,0.07556933]
[1755832234019,1.58160437,113610.0,113600.0,0.07556933]
[1755832234235,0.01378237,113610.0,113600.0,0.07556933]
[1755832234677,0.01378237,113610.0,113600.0,0.07656933]
[1755832235149,0.01378237,113610.0,113600.0,0.07556933]
[1755832235370,0.01378237,113610.0,113600.0,0.07456933]
[1755832235740,0.1675069,113620.0,113600.0,0.07456933]
[1755832235945,1.067822,113610.0,113600.0,0.07456933]
[1755832238693,1.0816047,113610.0,113600.0,0.07662933]
[1755832238950,1.08983988,113610.0,113600.0,0.07456933]
[1755832239916,1.08983988,113610.0,113600.0,0.07662933]
[1755832240319,1.33983988,113610.0,113600.0,0.07662933]
[1755832240520,1.34083988,113610.0,113600.0,0.07662933]
[1755832240754,1.34083988,113610.0,113600.0,0.07456933]
[1755832241597,1.34183988,113610.0,113600.0,0.07662933]
[1755832241802,1.34184113,113610.0,113600.0,0.07662933]
[1755832243197,1.34184113,113610.0,113600.0,0.07456933]
[1755832243406,1.34184113,113610.0,113600.0,0.07347933]
[1755832243621,1.34184113,113610.0,113600.0,0.00098129]
[1755832244261,1.34184113,113610.0,113600.0,0.00413129]
[1755832245143,1.37729826,113610.0,113600.0,0.00413129]
[1755832247918,1.3525841,113610.0,113600.0,0.00413129]
[1755832248137,1.36082422,113610.0,113600.0,0.00413129]
[1755832248562,1.36082348,113610.0,113600.0,0.00413129]
[1755832248781,1.34704078,113610.0,113600.0,0.00413129]
[1755832249248,1.36082401,113610.0,113600.0,0.00413129]
[1755832250135,1.36082401,113610.0,113600.0,0.00417129]
[1755832250870,1.37729931,113610.0,113600.0,0.00417129]
[1755832251082,1.37729758,113610.0,113600.0,0.00417129]
[1755832251294,1.52581758,113610.0,113600.0,0.00417129]
[1755832253700,1.52581758,113610.0,113600.0,0.00098129]
[1755832253915,1.32801818,113610.0,113600.0,0.00098129]
[1755832254128,1.32802232,113610.0,113600.0,0.00098129]
[1755832254981,1.17950232,113610.0,113600.0,0.00098129]
[1755832255165,1.32802232,113610.0,113600.0,0.00098129]
[1755832255397,1.31154426,113610.0,113600.0,0.00098129]
[1755832256084,1.34700397,113610.0,113600.0,0.00098129]
[1755832256519,1.35318403,113610.0,113600.0,0.00098129]
[1755832257165,1.33052624,113610.0,113600.0,0.00098129]
[1755832257386,1.35319026,113610.0,113600.0,0.00098129]
[1755832257832,1.35319027,113610.0,113600.0,0.00098129]
[1755832260577,1.353202,113610.0,113600.0,0.00098129]
[1755832265583,1.35322112,113610.0,113600.0,0.00098129]
[1755832266202,1.35322159,113610.0,113600.0,0.00098129]
[1755832268838,1.3532244,113610.0,113600.0,0.00098129]
[1755832274801,1.33054222,113610.0,113600.0,0.00098129]
[1755832275031,1.35324349,113610.0,113600.0,0.00098129]
[1755832275677,1.35324346,113610.0,113600.0,0.00098129]
[1755832278044,1.35324601,113610.0,113600.0,0.00098129]
[1755832279906,1.20472601,113610.0,113600.0,0.00098129]
[1755832280121,1.35320601,113610.0,113600.0,0.00098129]
[1755832280323,1.34701477,113610.0,113600.0,0.00098129]
[1755832280530,0.44975523,113610.0,113600.0,0.00098129]
[1755832280734,0.45801222,113610.0,113600.0,0.00098129]
[1755832281129,0.45801227,113610.0,113600.0,0.00098129]
[1755832283952,0.45707922,113610.0,113600.0,0.00098129]
[1755832284160,0.27310722,113610.0,113600.0,0.00098129]
[1755832284382,0.26485018,113610.0,113600.0,0.02745929]
[1755832285424,0.26285018,113610.0,113600.0,0.02745929]
[1755832285643,0.01378323,113610.0,113600.0,0.02745929]
[1755832285846,0.01478323,113610.0,113600.0,0.02845929]
[1755832286266,0.01378323,113610.0,113600.0,0.03065999]
[1755832286528,0.14848,113630.0,113600.0,0.02845929]
[1755832286723,0.14848,113630.0,113600.0,0.09989733]
[1755832287552,0.14848,113630.0,113600.0,0.09889733]
[1755832287995,0.5,113630.0,113600.0,0.09889733]
[1755832288242,0.710918,113640.0,113600.0,0.09889733]
[1755832288450,0.710918,113640.0,113600.0,0.09789733]
[1755832288655,0.001,113630.0,113600.0,0.09789733]
[1755832289247,0.14848,113640.0,113600.0,0.24637733]
[1755832289551,0.64848,113640.0,113600.0,0.09789733]
[1755832289786,0.54983202,113640.0,113600.0,0.09789733]
[1755832289993,0.01478002,113640.0,113600.0,0.09789733]
[1755832290408,0.01478002,113640.0,113600.0,0.07141933]
[1755832290614,0.01578002,113640.0,113610.0,0.026475]
[1755832290822,0.01378002,113640.0,113610.0,0.026475]
[1755832291032,0.14848,113630.0,113610.0,0.026475]
[1755832292418,0.14848,113630.0,113610.0,0.027475]
[1755832298527,0.51378002,113640.0,113610.0,0.027475]
[1755832298695,0.14844,113630.0,113610.0,0.027475]
[1755832299872,0.14844,113630.0,113610.0,0.02967551]
[1755832300562,0.14844,113630.0,113610.0,0.02867551]
[1755832301998,0.14844,113630.0,113610.0,0.026475]
[1755832303253,0.51378002,113640.0,113610.0,0.03087602]
[1755832303467,0.14892,113630.0,113610.0,0.03087602]
[1755832305434,0.51478002,113640.0,113610.0,0.03087602]
[1755832305633,0.14888,113630.0,113610.0,0.03087602]
[1755832305841,0.66266002,113640.0,113610.0,0.02867551]
[1755832306052,1.19871202,113640.0,113610.0,0.02867551]
[1755832306258,0.16266002,113640.0,113610.0,0.026475]
[1755832306458,0.66266002,113640.0,113610.0,0.026475]
[1755832307258,0.67188624,113640.0,113610.0,0.026475]
[1755832307411,0.67288624,113640.0,113610.0,0.293175]
[1755832309014,0.67288848,113640.0,113610.0,0.293175]
[1755832311145,0.01022846,113640.0,113610.0,0.293175]
[1755832311330,0.02400836,113640.0,113610.0,0.293175]
[1755832311752,0.01022846,113640.0,113610.0,0.293175]
[1755832311964,0.002,113640.0,113610.0,0.293175]
[1755832312482,0.15904125,113640.0,113610.0,0.293175]
[1755832312685,0.65904125,113640.0,113610.0,0.293175]
[1755832312915,1.01167825,113640.0,113610.0,0.293175]
[1755832313120,0.15904125,113640.0,113610.0,0.293175]
[1755832313333,0.68931703,113640.0,113610.0,0.026475]
[1755832313561,0.54195403,113640.0,113610.0,0.029475]
[1755832313740,0.18931703,113640.0,113610.0,0.029475]
[1755832315142,0.20832659,113640.0,113610.0,0.029475]
[1755832319626,0.21451584,113640.0,113610.0,0.029475]
[1755832320983,0.20008534,113640.0,113610.0,0.029475]
[1755832321211,0.21453669,113640.0,113610.0,0.029475]
[1755832322808,0.852637,113630.0,113610.0,0.026475]
[1755832323011,0.36088954,113630.0,113610.0,0.026475]
[1755832323213,0.00825254,113630.0,113610.0,0.026475]
[1755832323424,0.50825151,113630.0,113610.0,0.026475]
[1755832323657,0.86088851,113630.0,113610.0,0.026475]
[1755832323864,0.00825151,113630.0,113610.0,0.026475]
[1755832324080,0.50825151,113630.0,113610.0,0.026475]
[1755832324298,0.86088851,113630.0,113610.0,0.026475]
[1755832324497,0.00825151,113630.0,113610.0,0.026475]
[1755832324717,0.50825151,113630.0,113610.0,0.026475]